[Event "11th LCC Super Blitz KO 2019"]
[Site "London"]
[Date "2019.12.08"]
[Round "1.5"]
[White "Gharamian, Tigran"]
[Black "Tanmay Chopra"]
[Result "1-0"]
[ECO "B24"]
[WhiteElo "2603"]
[BlackElo "2100"]
[Annotator "ChessBase"]
[PlyCount "51"]
[EventDate "2019.12.08"]
[EventType "k.o."]
[EventCountry "ENG"]
[SourceTitle "playchess.com"]
[Source "ChessBase"]
[SourceQuality "1"]
[TimeControl "180+2"]

1. e4 {[%emt 0:00:00]} c5 {[%emt 0:00:00]} 2. Nf3 {[%emt 0:00:02]} e6 3. g3 {[%emt 0:00:00]} Nc6 {[%emt 0:00:00]} 4. Bg2 {[%emt 0:00:00]} d5 {[%emt 0:00:03]} 5. exd5 {[%emt 0:00:01]} exd5 {[%emt 0:00:01]} 6. O-O {[%emt 0:00:01]} Nf6 {[%emt 0:00:02]} 7. d4 {[%emt 0:00:01]} cxd4 {[%emt 0:00:07]} 8. Nxd4 {[%emt 0:00:02]} Be7 {[%emt 0:00:02]} 9. Nc3 {[%emt 0:00:04]} O-O {[%emt 0:00:02]} 10. h3 {[%emt 0:00:01]} a6 {[%emt 0:00:06]} 11. Bf4 {[%emt 0:00:02]} Qb6 {[%emt 0:00:14]} 12. Nb3 {[%emt 0:00:11]} Be6 {[%emt 0:00:14]} 13. Ne2 {[%emt 0:00:08]} Ne4 {[%emt 0:00:15]} 14. Ned4 {[%emt 0:00:07]} Nxd4 {[%emt 0:00:05]} 15. Qxd4 {[%emt 0:00:01]} Qxd4 {[%emt 0:00:24]} 16. Nxd4 {[%emt 0:00:01]} Bf6 {[%emt 0:00:02]} 17. Nxe6 {[%emt 0:00:06]} fxe6 {[%emt 0:00:01]} 18. Bxe4 {[%emt 0:00:02]} dxe4 {[%emt 0:00:01]} 19. c3 {[%emt 0:00:01]} Rac8 {[%emt 0:00:15]} 20. Rfe1 {[%emt 0:00:04]} Rc4 {[%emt 0:00:02]} 21. Rad1 {[%emt 0:00:01]} b5 {[%emt 0:00:37]} 22. Rd6 {[%emt 0:00:03]} b4 {[%emt 0:00:00]} 23. Rxe6 {[%emt 0:00:13]} bxc3 {[%emt 0:00:01]} 24. bxc3 {[%emt 0:00:01]} Rxc3 {[%emt 0:00:06]} 25. R6xe4 {[%emt 0:00:13]} Ra3 {[%emt 0:00:00]} 26. Bd6 {[%emt 0:00:03]} 1-0

[Event "11th LCC Super Blitz KO 2019"]
[Site "London"]
[Date "2019.12.08"]
[Round "1.6"]
[White "Grover, Sahaj"]
[Black "Arkell, Keith C"]
[Result "1/2-1/2"]
[ECO "A40"]
[WhiteElo "2508"]
[BlackElo "2453"]
[Annotator "ChessBase"]
[PlyCount "127"]
[EventDate "2019.12.08"]
[EventType "k.o."]
[EventCountry "ENG"]
[SourceTitle "playchess.com"]
[Source "ChessBase"]
[SourceQuality "1"]
[TimeControl "180+2"]

1. d4 {[%emt 0:00:00]} e6 {[%emt 0:00:00]} 2. c4 {[%emt 0:00:01]} Bb4+ {[%emt 0:00:01]} 3. Nc3 {[%emt 0:00:02]} c5 {[%emt 0:00:01]} 4. a3 {[%emt 0:00:06]} Bxc3+ {[%emt 0:00:02]} 5. bxc3 {[%emt 0:00:02]} f5 {[%emt 0:00:03]} 6. e4 {[%emt 0:00:26]} fxe4 {[%emt 0:00:02]} 7. Qh5+ {[%emt 0:00:21]} g6 {[%emt 0:00:01]} 8. Qe5 {[%emt 0:00:01]} Nf6 {[%emt 0:00:05]} 9. Qxc5 {[%emt 0:00:41]} d6 {[%emt 0:00:10]} 10. Qg5 {[%emt 0:00:01]} O-O {[%emt 0:00:05]} 11. h4 {[%emt 0:00:03]} Nc6 {[%emt 0:00:10]} 12. h5 {[%emt 0:00:01]} Qa5 {[%emt 0:00:07]} 13. Qxa5 {[%emt 0:00:29]} Nxa5 {[%emt 0:00:02]} 14. hxg6 {[%emt 0:00:01]} hxg6 {[%emt 0:00:16]} 15. Nh3 {[%emt 0:00:04]} Nb3 {[%emt 0:00:03]} 16. Rb1 {[%emt 0:00:01]} Nxc1 {[%emt 0:00:02]} 17. Rxc1 {[%emt 0:00:01]} Kg7 {[%emt 0:00:12]} 18. Nf4 {[%emt 0:00:07]} Bd7 {[%emt 0:00:02]} 19. g3 {[%emt 0:00:03]} Rh8 {[%emt 0:00:05]} 20. Rxh8 {[%emt 0:00:09]} Rxh8 {[%emt 0:00:02]} 21. Rb1 {[%emt 0:00:13]} b6 {[%emt 0:00:07]} 22. c5 {[%emt 0:00:01]} dxc5 {[%emt 0:00:01]} 23. dxc5 {[%emt 0:00:01]} g5 {[%emt 0:00:28]} 24. Ng2 {[%emt 0:00:16]} Rc8 {[%emt 0:00:43]} 25. cxb6 {[%emt 0:00:01]} axb6 {[%emt 0:00:01]} 26. c4 {[%emt 0:00:01]} Ra8 {[%emt 0:00:04]} 27. Rb3 {[%emt 0:00:13]} Ng4 {[%emt 0:00:14]} 28. Ne3 {[%emt 0:00:04]} Nxe3 29. Rxe3 {[%emt 0:00:01]} Kf6 {[%emt 0:00:05]} 30. Bg2 {[%emt 0:00:04]} Bc6 {[%emt 0:00:01]} 31. Rb3 {[%emt 0:00:01]} Ra6 {[%emt 0:00:06]} 32. Ke2 {[%emt 0:00:03]} Ke5 {[%emt 0:00:02]} 33. Ke3 {[%emt 0:00:01]} Ra8 {[%emt 0:00:19]} 34. Bf1 {[%emt 0:00:10]} Kd6 {[%emt 0:00:08]} 35. Bg2 {[%emt 0:00:06]} Ke5 {[%emt 0:00:04]} 36. Bf1 {[%emt 0:00:01]} Kd6 {[%emt 0:00:00]} 37. Kd4 {[%emt 0:00:03]} e5+ {[%emt 0:00:01]} 38. Ke3 {[%emt 0:00:02]} Kc5 {[%emt 0:00:00]} 39. Bg2 {[%emt 0:00:08]} Kxc4 {[%emt 0:00:04]} 40. Rb4+ {[%emt 0:00:01]} Kc5 {[%emt 0:00:01]} 41. Rb3 {[%emt 0:00:00]} Bd5 {[%emt 0:00:02]} 42. Rc3+ {[%emt 0:00:01]} Kd6 {[%emt 0:00:00]} 43. Bxe4 {[%emt 0:00:02]} Ra4 {[%emt 0:00:13]} 44. Bxd5 {[%emt 0:00:03]} Kxd5 {[%emt 0:00:00]} 45. Rb3 {[%emt 0:00:01]} Kc5 {[%emt 0:00:08]} 46. Rc3+ {[%emt 0:00:01]} Kd5 {[%emt 0:00:01]} 47. Rb3 {[%emt 0:00:01]} Kc5 {[%emt 0:00:00]} 48. Rc3+ {[%emt 0:00:03]} Kd5 {[%emt 0:00:00]} 49. Rd3+ {[%emt 0:00:02]} Kc5 {[%emt 0:00:01]} 50. Rb3 {[%emt 0:00:06]} g4 {[%emt 0:00:01]} 51. Rc3+ {[%emt 0:00:02]} Kd5 {[%emt 0:00:01]} 52. Rb3 {[%emt 0:00:04]} Kc5 53. f3 {[%emt 0:00:02]} gxf3 {[%emt 0:00:01]} 54. Kxf3 {[%emt 0:00:01]} Kd5 {[%emt 0:00:04]} 55. g4 {[%emt 0:00:01]} Rf4+ 56. Kg3 {[%emt 0:00:02]} Ra4 {[%emt 0:00:03]} 57. g5 {[%emt 0:00:02]} Ke6 {[%emt 0:00:01]} 58. Rxb6+ {[%emt 0:00:01]} Kf5 {[%emt 0:00:00]} 59. Rb3 {[%emt 0:00:02]} Kxg5 {[%emt 0:00:02]} 60. Kf3 {[%emt 0:00:01]} Kf5 61. Ke3 Rh4 {[%emt 0:00:02]} 62. Rb4 {[%emt 0:00:02]} Rh3+ {[%emt 0:00:01]} 63. Ke2 {[%emt 0:00:01]} Rxa3 {[%emt 0:00:01]} 64. Rc4 {[%emt 0:00:00]} 1/2-1/2

[Event "11th LCC Super Blitz KO 2019"]
[Site "London"]
[Date "2019.12.08"]
[Round "1.8"]
[White "Speelman, Jon S"]
[Black "Petrov, Martin"]
[Result "1-0"]
[ECO "A33"]
[WhiteElo "2509"]
[BlackElo "2497"]
[Annotator "ChessBase"]
[PlyCount "133"]
[EventDate "2019.12.08"]
[EventType "k.o."]
[EventCountry "ENG"]
[SourceTitle "playchess.com"]
[Source "ChessBase"]
[SourceQuality "1"]
[TimeControl "180+2"]

1. Nf3 {[%emt 0:00:00]} c5 {[%emt 0:00:01]} 2. c4 {[%emt 0:00:00]} Nc6 {[%emt 0:00:02]} 3. Nc3 {[%emt 0:00:01]} Nf6 {[%emt 0:00:02]} 4. d4 {[%emt 0:00:00]} cxd4 {[%emt 0:00:02]} 5. Nxd4 {[%emt 0:00:01]} e6 {[%emt 0:00:01]} 6. a3 {[%emt 0:00:01]} Be7 {[%emt 0:00:04]} 7. e4 {[%emt 0:00:04]} O-O {[%emt 0:00:02]} 8. Nf3 {[%emt 0:00:04]} Qc7 {[%emt 0:00:05]} 9. Bd3 {[%emt 0:00:03]} Ng4 {[%emt 0:00:02]} 10. h3 {[%emt 0:00:29]} Nge5 {[%emt 0:00:01]} 11. Nxe5 {[%emt 0:00:03]} Nxe5 {[%emt 0:00:02]} 12. Qe2 {[%emt 0:00:04]} b6 {[%emt 0:00:15]} 13. Be3 {[%emt 0:00:16]} Bb7 {[%emt 0:00:04]} 14. Rc1 {[%emt 0:00:03]} Rac8 {[%emt 0:00:06]} 15. Nb5 {[%emt 0:00:04]} Qb8 {[%emt 0:00:02]} 16. O-O {[%emt 0:00:04]} Nxd3 {[%emt 0:00:17]} 17. Qxd3 {[%emt 0:00:02]} Rfd8 {[%emt 0:00:01]} 18. Rfd1 {[%emt 0:00:10]} d5 {[%emt 0:00:05]} 19. cxd5 {[%emt 0:00:14]} exd5 {[%emt 0:00:18]} 20. Rxc8 {[%emt 0:00:06]} Qxc8 {[%emt 0:00:12]} 21. Nxa7 {[%emt 0:00:07]} Qe6 {[%emt 0:00:28]} 22. Nb5 {[%emt 0:00:28]} Qxe4 {[%emt 0:00:09]} 23. Bxb6 {[%emt 0:00:09]} Qxd3 {[%emt 0:00:25]} 24. Rxd3 {[%emt 0:00:01]} Rb8 {[%emt 0:00:00]} 25. Ba7 {[%emt 0:00:05]} Ra8 {[%emt 0:00:19]} 26. Be3 {[%emt 0:00:12]} f6 {[%emt 0:00:25]} 27. Nc3 {[%emt 0:00:04]} Rd8 {[%emt 0:00:03]} 28. Bd4 {[%emt 0:00:06]} Kf7 {[%emt 0:00:00]} 29. b4 {[%emt 0:00:03]} Ra8 {[%emt 0:00:05]} 30. Nd1 {[%emt 0:00:09]} Ba6 {[%emt 0:00:00]} 31. Rd2 {[%emt 0:00:03]} Bc4 {[%emt 0:00:01]} 32. Bb2 {[%emt 0:00:02]} f5 {[%emt 0:00:07]} 33. Ne3 {[%emt 0:00:05]} Bg5 {[%emt 0:00:04]} 34. Nxc4 {[%emt 0:00:01]} dxc4 {[%emt 0:00:06]} 35. Rd7+ {[%emt 0:00:00]} Ke6 {[%emt 0:00:01]} 36. Rc7 {[%emt 0:00:02]} Bf6 {[%emt 0:00:03]} 37. Bxf6 {[%emt 0:00:02]} Kxf6 {[%emt 0:00:01]} 38. Rxc4 {[%emt 0:00:02]} Rxa3 {[%emt 0:00:01]} 39. g3 {[%emt 0:00:02]} Rb3 {[%emt 0:00:01]} 40. h4 {[%emt 0:00:01]} g6 {[%emt 0:00:03]} 41. Kg2 {[%emt 0:00:01]} h6 {[%emt 0:00:02]} 42. Kh3 {[%emt 0:00:06]} Rb2 {[%emt 0:00:00]} 43. Kg2 {[%emt 0:00:01]} Rb3 {[%emt 0:00:00]} 44. Rc6+ {[%emt 0:00:01]} Kg7 {[%emt 0:00:00]} 45. Rb6 {[%emt 0:00:01]} Kf7 {[%emt 0:00:00]} 46. b5 {[%emt 0:00:00]} Kg7 {[%emt 0:00:00]} 47. Rb8 {[%emt 0:00:02]} g5 {[%emt 0:00:00]} 48. hxg5 {[%emt 0:00:01]} hxg5 {[%emt 0:00:00]} 49. b6 {[%emt 0:00:02]} Kf7 {[%emt 0:00:00]} 50. Kf1 {[%emt 0:00:01]} Rb2 {[%emt 0:00:00]} 51. Ke1 {[%emt 0:00:01]} Kg6 {[%emt 0:00:16]} 52. b7 {[%emt 0:00:01]} Kg7 {[%emt 0:00:01]} 53. f4 {[%emt 0:00:10]} gxf4 {[%emt 0:00:03]} 54. gxf4 {[%emt 0:00:00]} Kh7 {[%emt 0:00:04]} 55. Kd1 {[%emt 0:00:01]} Kg7 {[%emt 0:00:00]} 56. Kc1 {[%emt 0:00:01]} Rb4 {[%emt 0:00:02]} 57. Kc2 {[%emt 0:00:01]} Kh7 {[%emt 0:00:06]} 58. Kc3 {[%emt 0:00:01]} Rb1 {[%emt 0:00:01]} 59. Kd4 {[%emt 0:00:02]} Rb5 {[%emt 0:00:01]} 60. Kc4 {[%emt 0:00:00]} Rb1 {[%emt 0:00:02]} 61. Kd5 {[%emt 0:00:01]} Kg7 {[%emt 0:00:03]} 62. Ke5 {[%emt 0:00:02]} Rb5+ {[%emt 0:00:01]} 63. Ke6 {[%emt 0:00:00]} Kh7 {[%emt 0:00:01]} 64. Kf6 {[%emt 0:00:01]} Rb6+ {[%emt 0:00:14]} 65. Kxf5 {[%emt 0:00:01]} Rb5+ {[%emt 0:00:01]} 66. Ke4 {[%emt 0:00:01]} Kg7 {[%emt 0:00:02]} 67. f5 {[%emt 0:00:01]} 1-0

[Event "11th LCC Super Blitz KO 2019"]
[Site "London"]
[Date "2019.12.08"]
[Round "1.9"]
[White "Willow, Jonah B"]
[Black "Howell, David W L"]
[Result "0-1"]
[ECO "B12"]
[WhiteElo "2355"]
[BlackElo "2676"]
[Annotator "ChessBase"]
[PlyCount "120"]
[EventDate "2019.12.08"]
[EventType "k.o."]
[EventCountry "ENG"]
[SourceTitle "playchess.com"]
[Source "ChessBase"]
[SourceQuality "1"]
[TimeControl "180+2"]

1. e4 {[%emt 0:00:00]} c6 {[%emt 0:00:02]} 2. d4 {[%emt 0:00:00]} d5 {[%emt 0:00:01]} 3. e5 {[%emt 0:00:04]} Bf5 {[%emt 0:00:01]} 4. h4 {[%emt 0:00:02]} c5 {[%emt 0:00:07]} 5. dxc5 {[%emt 0:00:13]} Nc6 {[%emt 0:00:01]} 6. Nf3 {[%emt 0:00:20]} e6 {[%emt 0:00:08]} 7. Be3 {[%emt 0:00:12]} Bg4 {[%emt 0:00:13]} 8. Bb5 {[%emt 0:00:11]} Nge7 {[%emt 0:00:11]} 9. Nbd2 {[%emt 0:00:11]} Nf5 {[%emt 0:00:04]} 10. Bg5 {[%emt 0:00:22]} Qa5 {[%emt 0:00:14]} 11. Bxc6+ {[%emt 0:00:04]} bxc6 {[%emt 0:00:01]} 12. O-O {[%emt 0:00:05]} Qxc5 {[%emt 0:00:08]} 13. c4 {[%emt 0:00:09]} h6 {[%emt 0:00:02]} 14. Bf4 {[%emt 0:00:05]} Nxh4 {[%emt 0:00:33]} 15. cxd5 {[%emt 0:00:19]} Qxd5 {[%emt 0:00:01]} 16. Qa4 {[%emt 0:00:37]} Bxf3 {[%emt 0:00:06]} 17. Nxf3 {[%emt 0:00:03]} Nxf3+ 18. gxf3 {[%emt 0:00:01]} Qxf3 {[%emt 0:00:20]} 19. Rac1 {[%emt 0:00:16]} Qg4+ {[%emt 0:00:31]} 20. Kh2 {[%emt 0:00:05]} Qh4+ {[%emt 0:00:33]} 21. Kg1 {[%emt 0:00:02]} Qg4+ {[%emt 0:00:09]} 22. Kh2 {[%emt 0:00:00]} f6 {[%emt 0:00:12]} 23. Qxc6+ {[%emt 0:00:10]} Kf7 {[%emt 0:00:01]} 24. Qb7+ {[%emt 0:00:05]} Be7 {[%emt 0:00:04]} 25. Bg3 {[%emt 0:00:06]} Rhb8 {[%emt 0:00:01]} 26. Qc6 {[%emt 0:00:04]} fxe5 {[%emt 0:00:02]} 27. Rc4 {[%emt 0:00:04]} Qh5+ {[%emt 0:00:02]} 28. Kg1 {[%emt 0:00:02]} Bf6 {[%emt 0:00:02]} 29. Qd7+ {[%emt 0:00:01]} Kg8 {[%emt 0:00:01]} 30. Qxe6+ {[%emt 0:00:03]} Qf7 {[%emt 0:00:01]} 31. Qc6 {[%emt 0:00:01]} a5 {[%emt 0:00:03]} 32. Re4 {[%emt 0:00:02]} Ra7 {[%emt 0:00:03]} 33. Rfe1 {[%emt 0:00:02]} Rxb2 {[%emt 0:00:02]} 34. Qc8+ {[%emt 0:00:02]} Kh7 {[%emt 0:00:01]} 35. Qf5+ {[%emt 0:00:02]} Qg6 {[%emt 0:00:00]} 36. Qxg6+ {[%emt 0:00:04]} Kxg6 {[%emt 0:00:01]} 37. Bxe5 {[%emt 0:00:01]} Bxe5 {[%emt 0:00:04]} 38. Rxe5 {[%emt 0:00:00]} Rxa2 39. R1e3 {[%emt 0:00:04]} a4 {[%emt 0:00:04]} 40. Rg3+ {[%emt 0:00:02]} Kh7 {[%emt 0:00:01]} 41. Kg2 {[%emt 0:00:02]} a3 {[%emt 0:00:01]} 42. Ree3 {[%emt 0:00:02]} Ra1 {[%emt 0:00:01]} 43. Rb3 {[%emt 0:00:02]} a2 {[%emt 0:00:01]} 44. Ra3 {[%emt 0:00:02]} Rxa3 {[%emt 0:00:02]} 45. Rxa3 {[%emt 0:00:01]} Kg6 {[%emt 0:00:03]} 46. Ra5 {[%emt 0:00:01]} Kf6 {[%emt 0:00:09]} 47. Kf3 {[%emt 0:00:02]} Ke6 {[%emt 0:00:00]} 48. Kf4 {[%emt 0:00:03]} Kd6 {[%emt 0:00:03]} 49. f3 {[%emt 0:00:04]} Ke6 {[%emt 0:00:03]} 50. Ra6+ {[%emt 0:00:01]} Kf7 {[%emt 0:00:01]} 51. Ra7+ {[%emt 0:00:02]} Kg6 {[%emt 0:00:01]} 52. Ra6+ {[%emt 0:00:01]} Kh7 {[%emt 0:00:00]} 53. Ra7 {[%emt 0:00:01]} h5 {[%emt 0:00:01]} 54. Ra5 {[%emt 0:00:01]} Kh6 {[%emt 0:00:03]} 55. Kf5 {[%emt 0:00:02]} Rf1 {[%emt 0:00:05]} 56. Rxa2 {[%emt 0:00:03]} Rxf3+ {[%emt 0:00:01]} 57. Ke4 {[%emt 0:00:01]} Rf6 {[%emt 0:00:01]} 58. Ra8 {[%emt 0:00:01]} Kg5 {[%emt 0:00:01]} 59. Ra5+ {[%emt 0:00:01]} Kg4 {[%emt 0:00:01]} 60. Ra7 {[%emt 0:00:02]} g5 {[%emt 0:00:03]} 0-1

[Event "11th LCC Super Blitz KO 2019"]
[Site "London"]
[Date "2019.12.08"]
[Round "1.10"]
[White "McPhillips, Joseph"]
[Black "Bukojemski, Adam"]
[Result "1-0"]
[ECO "B40"]
[WhiteElo "2434"]
[BlackElo "2219"]
[Annotator "NA"]
[PlyCount "113"]
[EventDate "2019.12.08"]
[EventType "k.o."]
[EventCountry "ENG"]
[SourceTitle "playchess.com"]
[Source "ChessBase"]
[SourceQuality "1"]
[TimeControl "180+2"]

1. e4 {[%emt 0:00:00]} c5 {[%emt 0:00:00]} 2. Nf3 {[%emt 0:00:00]} e6 {[%emt 0:00:00]} 3. c3 {[%emt 0:00:01]} Nf6 {[%emt 0:00:01]} 4. Bd3 {[%emt 0:00:01]} Nc6 {[%emt 0:00:01]} 5. Bc2 {[%emt 0:00:02]} d6 {[%emt 0:00:02]} 6. O-O {[%emt 0:00:02]} Be7 {[%emt 0:00:01]} 7. Re1 {[%emt 0:00:01]} O-O {[%emt 0:00:02]} 8. d3 {[%emt 0:00:01]} Rb8 {[%emt 0:00:04]} 9. Nbd2 {[%emt 0:00:02]} b5 {[%emt 0:00:00]} 10. Nf1 {[%emt 0:00:02]} b4 {[%emt 0:00:02]} 11. Ng3 {[%emt 0:00:02]} Re8 {[%emt 0:00:02]} 12. h3 {[%emt 0:00:11]} Bf8 {[%emt 0:00:01]} 13. Bd2 {[%emt 0:00:05]} a5 {[%emt 0:00:07]} 14. Nh2 {[%emt 0:00:03]} e5 {[%emt 0:00:09]} 15. Bg5 {[%emt 0:00:13]} h6 {[%emt 0:00:02]} 16. Bd2 {[%emt 0:00:03]} g6 {[%emt 0:00:03]} 17. Rf1 {[%emt 0:00:08]} Bg7 {[%emt 0:00:02]} 18. Be3 {[%emt 0:00:05]} Ba6 {[%emt 0:00:11]} 19. Qd2 {[%emt 0:00:05]} Kh7 {[%emt 0:00:02]} 20. Ba4 {[%emt 0:00:06]} Bb5 {[%emt 0:00:14]} 21. Bb3 {[%emt 0:00:01]} Qe7 {[%emt 0:00:12]} 22. Rfd1 {[%emt 0:00:19]} a4 {[%emt 0:00:07]} 23. Bc2 {[%emt 0:00:01]} a3 {[%emt 0:00:14]} 24. bxa3 {[%emt 0:00:03]} bxa3 {[%emt 0:00:01]} 25. c4 {[%emt 0:00:11]} Ba6 {[%emt 0:00:01]} 26. Ba4 {[%emt 0:00:01]} Rec8 {[%emt 0:00:02]} 27. Qc3 {[%emt 0:00:11]} Rb4 {[%emt 0:00:17]} 28. Qxa3 {[%emt 0:00:05]} Nd4 {[%emt 0:00:05]} 29. Bxd4 {[%emt 0:00:08]} exd4 {[%emt 0:00:01]} 30. Bb3 {[%emt 0:00:05]} Bb7 {[%emt 0:00:18]} 31. Rf1 {[%emt 0:00:03]} Nd7 {[%emt 0:00:08]} 32. f4 {[%emt 0:00:03]} f5 {[%emt 0:00:13]} 33. Rae1 {[%emt 0:00:07]} fxe4 {[%emt 0:00:01]} 34. Nxe4 {[%emt 0:00:03]} Qf8 {[%emt 0:00:11]} 35. Qc1 {[%emt 0:00:04]} Nf6 {[%emt 0:00:07]} 36. Ng5+ {[%emt 0:00:09]} hxg5 {[%emt 0:00:14]} 37. fxg5 {[%emt 0:00:02]} Rc7 {[%emt 0:00:21]} 38. gxf6 {[%emt 0:00:02]} Bh6 {[%emt 0:00:01]} 39. Qd1 {[%emt 0:00:10]} Be3+ {[%emt 0:00:05]} 40. Kh1 {[%emt 0:00:01]} Rf7 {[%emt 0:00:02]} 41. Ng4 {[%emt 0:00:02]} Bg5 {[%emt 0:00:02]} 42. Qe2 {[%emt 0:00:13]} Bc6 {[%emt 0:00:11]} 43. Qf2 {[%emt 0:00:11]} Qh8 {[%emt 0:00:10]} 44. Qg3 {[%emt 0:00:08]} Rb6 {[%emt 0:00:02]} 45. Ne5 {[%emt 0:00:08]} dxe5 {[%emt 0:00:08]} 46. Qxg5 {[%emt 0:00:01]} Kg8 {[%emt 0:00:06]} 47. Qxg6+ {[%emt 0:00:03]} Kf8 48. Qf5 {[%emt 0:00:12]} Bb7 {[%emt 0:00:05]} 49. Kg1 {[%emt 0:00:23]} Rbxf6 {[%emt 0:00:01]} 50. Qg4 {[%emt 0:00:02]} Rxf1+ {[%emt 0:00:02]} 51. Rxf1 {[%emt 0:00:01]} Rxf1+ {[%emt 0:00:01]} 52. Kxf1 {[%emt 0:00:01]} Qf6+ {[%emt 0:00:00]} 53. Kg1 {[%emt 0:00:01]} Qh6 {[%emt 0:00:02]} 54. Qf5+ {[%emt 0:00:02]} Kg8 {[%emt 0:00:01]} 55. Qxe5 {[%emt 0:00:03]} Qc1+ {[%emt 0:00:01]} 56. Kh2 {[%emt 0:00:01]} Qh6 {[%emt 0:00:04]} 57. Qe8+ {[%emt 0:00:02]} 1-0

[Event "11th LCC Super Blitz KO 2019"]
[Site "London"]
[Date "2019.12.08"]
[Round "1.11"]
[White "Flear, Glenn C"]
[Black "Harvey, Marcus R"]
[Result "1/2-1/2"]
[ECO "E12"]
[WhiteElo "2440"]
[BlackElo "2412"]
[Annotator "NA"]
[PlyCount "62"]
[EventDate "2019.12.08"]
[EventType "k.o."]
[EventCountry "ENG"]
[SourceTitle "playchess.com"]
[Source "ChessBase"]
[SourceQuality "1"]
[TimeControl "180+2"]

1. d4 {[%emt 0:00:00]} Nf6 {[%emt 0:00:00]} 2. c4 {[%emt 0:00:00]} e6 {[%emt 0:00:00]} 3. Nf3 {[%emt 0:00:00]} b6 {[%emt 0:00:00]} 4. Bf4 {[%emt 0:00:02]} Bb7 {[%emt 0:00:01]} 5. e3 {[%emt 0:00:01]} Nh5 {[%emt 0:00:03]} 6. Nc3 {[%emt 0:00:07]} Nxf4 {[%emt 0:00:05]} 7. exf4 {[%emt 0:00:01]} d5 {[%emt 0:00:05]} 8. cxd5 {[%emt 0:00:04]} Bxd5 {[%emt 0:00:01]} 9. Nxd5 {[%emt 0:00:05]} Qxd5 {[%emt 0:00:08]} 10. Qa4+ {[%emt 0:00:04]} c6 {[%emt 0:00:30]} 11. O-O-O {[%emt 0:00:10]} b5 {[%emt 0:00:12]} 12. Qc2 {[%emt 0:00:20]} Qxa2 {[%emt 0:00:13]} 13. Ne5 {[%emt 0:00:17]} Qa1+ {[%emt 0:00:08]} 14. Kd2 {[%emt 0:00:11]} Qa5+ {[%emt 0:00:01]} 15. Ke3 {[%emt 0:00:02]} Bd6 {[%emt 0:00:10]} 16. Nxc6 {[%emt 0:00:07]} Qb6 {[%emt 0:00:26]} 17. Ne5 {[%emt 0:00:04]} O-O {[%emt 0:00:18]} 18. Bd3 {[%emt 0:00:03]} Bxe5 {[%emt 0:00:18]} 19. fxe5 {[%emt 0:00:02]} Nc6 {[%emt 0:00:00]} 20. Bxh7+ {[%emt 0:00:06]} Kh8 {[%emt 0:00:01]} 21. Be4 {[%emt 0:00:02]} Rac8 {[%emt 0:00:10]} 22. Bxc6 {[%emt 0:00:17]} Rxc6 {[%emt 0:00:01]} 23. Qe4 {[%emt 0:00:09]} f5 {[%emt 0:00:02]} 24. exf6 {[%emt 0:00:10]} Rxf6 {[%emt 0:00:01]} 25. Rc1 {[%emt 0:00:02]} e5 {[%emt 0:00:05]} 26. Rxc6 {[%emt 0:00:08]} exd4+ {[%emt 0:00:04]} 27. Qxd4 {[%emt 0:00:11]} Qxc6 {[%emt 0:00:01]} 28. f3 {[%emt 0:00:15]} Re6+ {[%emt 0:00:06]} 29. Kf4 {[%emt 0:00:08]} Rf6+ {[%emt 0:00:08]} 30. Ke3 {[%emt 0:00:05]} Re6+ {[%emt 0:00:03]} 31. Kf4 {[%emt 0:00:03]} Rf6+ {[%emt 0:00:10]} 1/2-1/2

[Event "11th LCC Super Blitz KO 2019"]
[Site "London"]
[Date "2019.12.08"]
[Round "1.12"]
[White "Rendle, Thomas E"]
[Black "Zapolskis, Antanas"]
[Result "1-0"]
[ECO "B23"]
[WhiteElo "2361"]
[BlackElo "2280"]
[Annotator "NA"]
[PlyCount "45"]
[EventDate "2019.12.08"]
[EventType "k.o."]
[EventCountry "ENG"]
[SourceTitle "playchess.com"]
[Source "ChessBase"]
[SourceQuality "1"]
[TimeControl "180+2"]

1. e4 {[%emt 0:00:00]} c5 {[%emt 0:00:00]} 2. Nc3 {[%emt 0:00:01]} Nc6 {[%emt 0:00:01]} 3. Bb5 {[%emt 0:00:02]} Na5 {[%emt 0:00:10]} 4. f4 {[%emt 0:00:28]} a6 {[%emt 0:00:01]} 5. Be2 {[%emt 0:00:02]} d6 {[%emt 0:00:25]} 6. Nf3 {[%emt 0:00:01]} Nf6 {[%emt 0:00:07]} 7. d4 {[%emt 0:00:16]} cxd4 {[%emt 0:00:07]} 8. Nxd4 {[%emt 0:00:02]} Qc7 {[%emt 0:00:06]} 9. O-O {[%emt 0:00:05]} e6 {[%emt 0:00:11]} 10. Be3 {[%emt 0:00:15]} b5 {[%emt 0:00:08]} 11. f5 {[%emt 0:00:42]} e5 {[%emt 0:00:04]} 12. Nb3 {[%emt 0:00:07]} Nc4 {[%emt 0:00:12]} 13. Bg5 {[%emt 0:00:01]} Nxb2 {[%emt 0:00:21]} 14. Qe1 {[%emt 0:00:06]} b4 {[%emt 0:00:11]} 15. Bxf6 {[%emt 0:00:16]} Qxc3 {[%emt 0:00:16]} 16. Bh4 {[%emt 0:00:09]} Bb7 {[%emt 0:00:09]} 17. a3 {[%emt 0:00:21]} Qe3+ {[%emt 0:00:26]} 18. Qf2 {[%emt 0:00:19]} Qxf2+ {[%emt 0:00:10]} 19. Bxf2 {[%emt 0:00:02]} bxa3 {[%emt 0:00:10]} 20. Rxa3 {[%emt 0:00:01]} d5 {[%emt 0:00:16]} 21. Ra2 {[%emt 0:00:01]} Nc4 {[%emt 0:00:02]} 22. exd5 {[%emt 0:00:04]} Bxd5 {[%emt 0:00:04]} 23. Rd1 {[%emt 0:00:01]} 1-0

[Event "11th LCC Super Blitz KO 2019"]
[Site "London"]
[Date "2019.12.08"]
[Round "1.15"]
[White "Gormally, Daniel W"]
[Black "Kvetny, Mark"]
[Result "1-0"]
[ECO "D21"]
[WhiteElo "2497"]
[BlackElo "2420"]
[Annotator "ChessBase"]
[PlyCount "41"]
[EventDate "2019.12.08"]
[EventType "k.o."]
[EventCountry "ENG"]
[SourceTitle "playchess.com"]
[Source "ChessBase"]
[SourceQuality "1"]
[TimeControl "180+2"]

1. d4 {[%emt 0:00:00]} d5 {[%emt 0:00:00]} 2. c4 {[%emt 0:00:00]} dxc4 {[%emt 0:00:00]} 3. Nf3 {[%emt 0:00:02]} a6 {[%emt 0:00:03]} 4. e4 {[%emt 0:00:03]} b5 {[%emt 0:00:03]} 5. a4 {[%emt 0:00:01]} Bb7 {[%emt 0:00:01]} 6. axb5 {[%emt 0:00:05]} axb5 {[%emt 0:00:01]} 7. Rxa8 {[%emt 0:00:02]} Bxa8 {[%emt 0:00:02]} 8. Nc3 {[%emt 0:00:00]} Nf6 {[%emt 0:00:28]} 9. e5 {[%emt 0:00:07]} Nd5 {[%emt 0:00:00]} 10. e6 {[%emt 0:00:01]} fxe6 {[%emt 0:00:32]} 11. Nxb5 {[%emt 0:00:01]} Nb6 {[%emt 0:00:17]} 12. Nc3 {[%emt 0:00:33]} g6 {[%emt 0:00:07]} 13. Be2 {[%emt 0:00:10]} Bg7 {[%emt 0:00:02]} 14. O-O {[%emt 0:00:01]} O-O {[%emt 0:00:19]} 15. Ng5 {[%emt 0:00:01]} Bd5 {[%emt 0:00:13]} 16. Bg4 {[%emt 0:00:03]} Qd6 {[%emt 0:00:26]} 17. Nxd5 {[%emt 0:00:20]} exd5 {[%emt 0:00:01]} 18. Be6+ {[%emt 0:00:01]} Kh8 {[%emt 0:00:01]} 19. Qg4 {[%emt 0:00:02]} Bf6 {[%emt 0:00:44]} 20. Nxh7 {[%emt 0:00:12]} N8d7 {[%emt 0:00:16]} 21. Qh3 {[%emt 0:00:18]} 1-0